bitfinex/quotes_ETHUSD_20251028
["timestamp","ask_amount","ask_price","bid_price","bid_amount"]
[1761631173930,7.26546466,4071.2,4071.1,0.01]
[1761631174124,7.85360762,4071.2,4071.1,0.01]
[1761631174545,9.40880762,4071.2,4071.1,0.01]
[1761631175649,9.81431162,4071.2,4071.1,0.01]
[1761631175851,9.81431162,4071.2,4070.6,0.002]
[1761631176021,13.10545678,4070.7,4070.6,0.002]
[1761631176344,13.53469001,4070.7,4070.6,0.002]
[1761631176546,13.98089001,4070.7,4070.6,0.002]
[1761631178658,9.23129959,4070.7,4070.6,0.002]
[1761631181122,10.45929959,4070.7,4070.6,0.002]
[1761631181544,10.86480359,4070.7,4070.6,0.002]
[1761631181825,15.20889001,4070.7,4070.6,0.002]
[1761631182337,10.86480359,4070.7,4070.6,0.002]
[1761631182721,10.98800359,4070.7,4070.6,0.002]
[1761631185220,15.33209001,4070.7,4070.6,0.002]
[1761631185779,15.33209001,4070.7,4070.3,0.002]
[1761631185780,15.33209001,4070.7,4069.7,0.002]
[1761631185781,2.4571232,4069.8,4069.7,0.002]
[1761631185925,2.4571232,4069.8,4069.2,0.002]
[1761631185926,2.4574251,4069.3,4069.2,0.002]
[1761631186121,13.10630194,4069.3,4069.2,0.002]
[1761631186324,4.4181895,4069.2,4069.1,0.01]
[1761631186560,5.38436408,4069.2,4069.1,0.01]
[1761631186776,6.64663677,4069.2,4069.1,0.01]
[1761631187120,6.64663677,4069.2,4068.1,0.01]
[1761631187341,6.80217599,4068.2,4068.1,0.01]
[1761631187752,2.45808957,4068.2,4068.1,0.01]
[1761631187961,2.90378957,4068.2,4068.1,0.01]
[1761631188283,3.4599296,4068.2,4068.1,0.01]
[1761631189987,1.5552,4068.5,4068.1,0.01]
[1761631190173,5.64679357,4068.2,4068.1,0.01]
[1761631190492,4.01328957,4068.2,4068.1,0.01]
[1761631190698,5.24128957,4068.2,4068.1,0.01]
[1761631190998,6.48399955,4068.2,4068.1,0.01]
[1761631192103,4.82619955,4068.2,4068.1,0.012]
[1761631192261,2.7832,4068.2,4068.1,0.012]
[1761631192599,5.24128957,4068.2,4068.1,0.012]
[1761631194191,1.228,4068.2,4068.1,0.2263]
[1761631194494,1.228,4068.2,4068.1,0.6703]
[1761631195498,3.68608957,4068.2,4068.1,0.012]
[1761631195666,19.22361174,4068.2,4068.1,0.012]
[1761631195870,17.99561174,4068.2,4068.1,0.012]
[1761631196085,6.01943976,4068.2,4068.1,0.012]
[1761631196282,2.9064,4068.2,4068.1,0.456]
[1761631196481,1.3512,4068.2,4068.1,0.6703]
[1761631196795,1.3512,4068.2,4068.1,0.2263]
[1761631197292,1.3522,4068.2,4068.1,0.6703]
[1761631197493,2.45793461,4068.5,4068.1,0.6703]
[1761631197696,1.229,4068.4,4068.1,0.6703]
[1761631197904,0.4298,4069.1,4068.1,0.6703]
[1761631197905,1.229,4068.3,4068.2,0.444]
[1761631198057,1.229,4068.3,4068.2,2.90208957]
[1761631199392,2.45724395,4069.6,4068.3,2.45801124]
[1761631199556,2.45754661,4069.1,4068.4,2.45795693]
[1761631199893,2.45754661,4069.1,4068.4,2.90195693]
[1761631200083,4.01256472,4069.4,4068.5,0.444]
[1761631200084,2.45749191,4069.2,4068.5,0.444]
[1761631200279,2.7842,4069.5,4068.8,2.45772379]
[1761631200498,0.1774,4069.9,4068.8,2.45772379]
[1761631200499,0.65097603,4070.5,4069.4,0.1876]
[1761631200660,1.229,4070.4,4069.4,0.1876]
[1761631200862,2.45717954,4069.8,4069.4,0.1876]
[1761631201057,0.51946671,4070.2,4069.3,0.444]
[1761631201262,2.45728768,4069.6,4069.2,0.1876]
[1761631201495,2.45728768,4069.6,4068.1,0.2263]
[1761631201496,2.45728729,4069.6,4068.6,2.45783554]
[1761631201672,2.45728729,4069.6,4068.2,0.444]
[1761631201871,2.45724903,4069.6,4068.7,2.45774333]
[1761631202200,1.5552,4069.8,4068.7,2.45774333]
[1761631202380,2.45724395,4069.6,4068.8,2.90171416]
[1761631202579,2.45724395,4069.6,4068.1,0.2263]
[1761631202580,2.45768657,4068.9,4068.1,0.2263]
[1761631202782,0.1879,4068.8,4068.1,0.012]
[1761631202988,2.45808957,4068.2,4068.1,0.012]
[1761631203183,2.61834644,4069.6,4068.2,0.2143]
[1761631203427,3.30470934,4069.5,4068.3,0.02458029]
[1761631203568,1.229,4069.5,4068.3,0.444]
[1761631203776,1.229,4069.5,4068.4,2.45796873]
[1761631203982,1.229,4069.5,4069.4,0.1876]
[1761631204474,0.52077439,4070.3,4069.4,0.6531]
[1761631204686,1.228,4069.5,4069.4,0.6531]
[1761631204975,1.228,4069.5,4069.4,0.1876]
[1761631205589,1.228,4069.5,4069.0,0.4655]
[1761631205811,1.228,4069.5,4068.5,0.4655]
[1761631206010,2.45752876,4069.2,4068.7,0.4655]
[1761631206357,1.6581,4069.5,4068.3,0.4655]
[1761631206473,2.45768676,4068.9,4068.3,0.4655]
[1761631206806,2.45772541,4068.9,4068.3,0.4655]
[1761631207223,0.4301,4069.4,4068.3,0.4655]
[1761631207702,0.1232,4068.4,4068.3,0.4655]
[1761631208019,0.1232,4068.4,4068.2,0.2143]
[1761631208208,0.1232,4068.4,4068.1,0.012]
[1761631208385,13.20417198,4069.3,4068.1,0.012]
[1761631208386,1.75394202,4069.5,4068.3,0.2143]
[1761631208573,0.2199,4069.8,4068.7,2.45777884]
[1761631208574,1.228,4069.4,4068.7,2.45777884]
[1761631208928,1.228,4069.3,4068.6,2.45784297]
[1761631209238,2.45765724,4069.0,4068.3,0.2143]
[1761631209374,2.4574855,4069.2,4068.3,0.2143]
[1761631209573,2.45767254,4068.9,4068.3,0.2143]
[1761631209826,1.5552,4069.2,4068.3,3.10332261]
[1761631210002,1.228,4069.3,4068.6,2.45780715]
[1761631210311,1.228,4069.3,4068.7,2.45778065]
[1761631210531,1.228,4069.3,4068.8,2.45768508]
[1761631211009,2.45736932,4069.4,4068.9,0.431]
[1761631211180,1.228,4069.2,4068.9,0.431]
[1761631211706,0.001,4069.5,4069.1,0.1876]
[1761631211912,1.228,4069.4,4069.1,0.1876]
[1761631212204,0.001,4069.5,4069.2,0.431]
[1761631212205,1.228,4069.3,4069.2,0.431]
[1761631212810,0.001,4069.5,4069.2,3.19609777]
[1761631213011,1.228,4069.4,4069.3,0.431]
[1761631213310,1.228,4069.4,4069.3,2.8884251]
[1761631213615,0.001,4069.5,4069.4,2.45736472]
[1761631213805,0.001,4069.5,4069.4,2.88836472]
[1761631214031,0.001,4069.5,4069.4,3.47246514]
[1761631220405,0.001,4069.5,4069.4,5.02766514]
[1761631221681,0.001,4069.5,4069.4,5.43316914]
[1761631221814,0.001,4069.5,4069.4,5.55636914]
[1761631223362,0.001,4069.5,4069.4,5.15086514]
[1761631223657,0.001,4069.5,4069.4,5.55636914]
[1761631224431,0.001,4069.5,4069.4,5.65465298]
[1761631232551,0.001,4069.5,4069.4,15.90465298]
[1761631233428,1e-08,4071.1,4071.0,2.45639891]
[1761631233579,1e-08,4071.1,4071.0,15.81915997]
[1761631233894,1e-08,4071.1,4071.0,17.80535997]
[1761631234048,1e-08,4071.1,4071.0,17.90360663]
[1761631234248,1e-08,4071.1,4071.0,5.16064957]
[1761631234448,1e-08,4071.1,4071.0,5.92236212]
[1761631236508,1e-08,4071.1,4071.0,3.31635812]
[1761631236711,1e-08,4071.1,4071.0,2.45639891]
[1761631239083,1e-08,4071.1,4071.0,3.33530291]
[1761631239287,1e-08,4071.1,4071.0,4.07228866]
[1761631239831,1e-08,4071.1,4071.0,5.65205264]
[1761631240030,1e-08,4071.1,4071.0,5.62748866]
[1761631240183,1e-08,4071.1,4071.0,6.43588511]
[1761631241830,1e-08,4071.1,4071.0,4.74858466]
[1761631242031,1e-08,4071.1,4071.0,2.45639891]
[1761631242886,1e-08,4071.1,4071.0,2.92979891]
[1761631243212,1e-08,4071.1,4071.0,2.45639891]
[1761631243427,1e-08,4071.1,4071.0,2.57959891]
[1761631244014,1e-08,4071.1,4071.0,3.75946639]
[1761631247032,1e-08,4071.1,4071.0,3.28606639]
[1761631247893,1e-08,4071.1,4071.0,3.76146639]
[1761631248913,1e-08,4071.1,4071.0,5.72217039]
[1761631252023,1e-08,4071.1,4071.0,6.45910545]
[1761631253391,1e-08,4071.1,4071.0,5.98570545]
[1761631253592,1e-08,4071.1,4071.0,5.24877039]
[1761631253791,1e-08,4071.1,4071.0,5.34703684]
[1761631256018,1e-08,4071.1,4071.0,5.24877039]
[1761631256207,0.42790001,4071.1,4071.0,4.13679891]
[1761631258831,0.42790001,4071.1,4071.0,2.45839891]
[1761631259044,0.55110001,4071.1,4071.0,2.45839891]
[1761631260452,1e-08,4071.1,4071.0,2.48296289]
[1761631260657,1e-08,4071.1,4071.0,5.53421317]
[1761631260814,1e-08,4071.1,4071.0,5.50964919]
[1761631261147,1e-08,4071.1,4071.0,19.01632676]
[1761631261332,1e-08,4071.8,4071.7,4.63098061]
[1761631261646,1e-08,4071.8,4071.7,4.41668061]
[1761631261853,1e-08,4071.8,4071.7,5.10395417]
[1761631262038,1e-08,4071.8,4071.7,5.57735417]
[1761631265564,0.00100001,4071.8,4071.7,5.57735417]
[1761631267042,0.001,4072.7,4071.7,5.57735417]
[1761631267043,0.001,4072.7,4072.6,2.86093787]
[1761631267243,1.227,4073.6,4073.5,2.45489137]
[1761631267666,0.01,4073.8,4073.7,2.45477084]
[1761631268180,0.4358,4073.8,4073.7,2.45477084]
[1761631269078,0.01,4073.8,4073.7,2.45477084]
[1761631271267,0.4337,4073.8,4073.7,2.57717084]
[1761631271777,0.01,4073.8,4073.7,2.57717084]
[1761631271944,0.01,4073.8,4073.7,2.95626706]
[1761631272562,0.01,4073.8,4073.7,4.51146706]
[1761631274290,0.01,4073.8,4073.7,4.91697106]
[1761631274789,0.01,4073.8,4073.7,5.37167106]
[1761631275184,0.01,4073.8,4073.7,4.91697106]
[1761631277871,0.01,4073.8,4073.7,4.41376484]
[1761631279093,0.4588,4073.8,4073.7,2.33066084]
[1761631279394,0.4588,4073.8,4073.2,2.45501572]
[1761631279594,0.4588,4073.8,4073.4,2.45492991]
[1761631279759,0.4588,4073.8,4073.5,2.45488122]
[1761631280403,0.4588,4073.8,4073.6,2.45482662]
[1761631280579,0.4588,4073.8,4073.7,2.45477084]
[1761631281694,0.01,4073.8,4073.7,2.45477084]
[1761631281997,1.6832,4073.8,4073.7,2.45477084]
[1761631283807,1.6842,4073.8,4073.7,2.45477084]
[1761631286563,1.238,4073.8,4073.7,2.45477084]
[1761631286763,0.011,4073.8,4073.7,2.94573572]
[1761631288099,0.4522,4073.8,4073.7,2.45477084]
[1761631289541,0.4522,4073.8,4073.6,0.1224]
[1761631289814,0.5746,4073.8,4073.3,0.1224]
[1761631290012,0.1224,4073.5,4073.1,2.45508474]
[1761631290314,0.1224,4073.5,4072.9,0.1224]
[1761631290514,0.4412,4073.4,4073.1,2.45511421]
[1761631290717,0.4412,4073.4,4072.9,0.1224]
[1761631290921,0.4412,4073.4,4072.3,0.1224]
[1761631291214,0.1224,4073.0,4072.4,2.45555446]
[1761631291511,0.1224,4073.0,4072.6,2.4553908]
[1761631291722,0.6664,4072.9,4072.6,2.4553908]
[1761631291926,0.6664,4072.9,4072.4,2.4555339]
[1761631292230,0.1224,4072.7,4072.1,0.1224]
[1761631292398,0.4465,4072.8,4071.8,2.57829267]
[1761631292725,2.67289021,4072.9,4071.8,2.57829267]
[1761631292726,0.1224,4072.4,4071.8,2.45587963]
[1761631293034,0.1224,4072.4,4071.9,2.45582845]
[1761631293203,0.3695,4072.3,4071.9,2.45582845]
[1761631293398,0.3695,4072.3,4071.6,0.002]
[1761631293597,0.3695,4072.3,4071.6,2.45803662]
[1761631293598,0.1224,4071.9,4071.6,2.45803662]
[1761631293797,0.1224,4071.9,4071.6,0.002]
[1761631293996,0.3695,4071.8,4071.6,0.002]
[1761631294887,0.3695,4071.8,4071.6,2.45797765]
[1761631295322,2.45557047,4072.4,4071.6,2.45797765]
[1761631295323,1.227,4072.4,4071.7,2.48053637]
[1761631295511,1.227,4072.4,4072.3,2.45556403]
[1761631295891,1.5965,4072.4,4071.6,0.49341213]
[1761631296139,0.3695,4072.3,4071.6,0.002]
[1761631296767,0.3695,4072.3,4071.8,2.45591509]
[1761631297452,0.3695,4072.3,4071.6,2.45803576]
[1761631297453,0.3695,4072.3,4071.9,2.45585537]
[1761631297964,2.82511522,4072.3,4071.6,0.002]
[1761631298133,2.82511522,4072.3,4071.6,2.45802965]
[1761631298329,0.3695,4072.2,4071.6,0.002]
[1761631298858,2.82518837,4072.2,4071.6,0.002]
[1761631299077,0.3695,4072.2,4071.6,0.002]
[1761631299270,0.3695,4072.1,4071.8,2.45588073]
[1761631299427,0.3695,4072.1,4071.9,2.45585598]
[1761631299428,1.227,4072.0,4071.9,2.45585598]
[1761631299624,1.227,4072.0,4071.6,0.002]
[1761631299829,0.3695,4071.9,4071.8,2.45591335]
[1761631300225,0.2176,4072.9,4071.8,2.45591335]
[1761631300226,0.2176,4072.9,4071.8,0.51595307]
[1761631300432,1.5965,4072.8,4072.3,2.45557556]
[1761631300666,0.3695,4072.8,4072.3,2.45560247]
[1761631300831,1.5965,4072.7,4072.4,2.45550809]
[1761631301366,1.5965,4072.7,4072.1,2.45573383]
[1761631301367,0.3695,4072.6,4072.1,2.45568157]
[1761631301525,0.3695,4072.6,4071.9,2.45580334]
[1761631301730,0.3695,4072.6,4072.0,2.45579567]
[1761631301967,0.3695,4072.6,4071.6,2.45803681]
[1761631302273,0.3695,4072.6,4071.9,2.45585158]
[1761631302434,2.82495373,4072.6,4071.9,2.45585158]
[1761631302629,0.3695,4072.6,4071.6,0.002]
[1761631302873,0.3695,4072.5,4071.8,2.45589653]
[1761631303034,0.3695,4072.5,4071.7,0.29244034]
[1761631303035,0.3695,4072.5,4072.1,2.45569409]
[1761631304033,0.3695,4072.5,4072.0,2.45577394]
[1761631304267,0.3695,4072.5,4071.8,2.45590603]
[1761631304763,0.3695,4072.5,4071.7,0.29244034]
[1761631304764,0.3695,4072.5,4072.2,2.45567388]
[1761631304997,1.5965,4072.7,4072.3,2.45560772]
[1761631305177,0.3695,4072.6,4072.2,2.45565357]
[1761631305501,0.1224,4072.4,4071.7,0.41484034]
[1761631305807,0.1224,4072.4,4072.2,2.4556421]
[1761631306382,0.5621,4073.9,4072.3,0.619304]
[1761631306585,1.238,4073.8,4072.5,0.405504]
[1761631306788,1.238,4073.8,4073.6,2.4548311]
[1761631307102,1.238,4073.8,4072.8,2.45531329]
[1761631307103,0.3672,4073.7,4072.8,2.86081729]
[1761631307307,0.3672,4073.7,4073.6,2.4548311]
[1761631308102,0.3672,4073.7,4072.6,0.4663]
[1761631308103,0.3672,4073.7,4073.4,2.45490555]
[1761631308311,0.3672,4073.7,4073.6,2.4548311]
[1761631308536,0.001,4073.7,4073.6,2.4548311]
[1761631308667,1.228,4073.7,4073.6,2.4548311]
[1761631308869,1.228,4073.7,4073.5,2.45487295]
[1761631309066,1.228,4073.7,4073.1,0.2019]
[1761631309067,1.228,4073.7,4073.4,2.45494337]
[1761631309303,1.228,4073.7,4073.3,2.4550119]
[1761631309472,0.3662,4073.6,4073.3,2.4550119]
[1761631310121,2.45493911,4073.5,4072.1,2.45573536]
[1761631310270,2.45493911,4073.5,4072.7,2.455322]
[1761631310467,0.3662,4073.4,4072.0,0.2138]
[1761631310697,0.3662,4073.4,4072.1,0.42248732]
[1761631311001,0.3662,4073.4,4071.6,0.002]
[1761631311002,2.45505264,4073.3,4072.5,2.45546807]
[1761631311406,2.82127696,4073.2,4072.5,2.45546807]
[1761631311888,0.3662,4073.1,4072.0,3.88]
[1761631312067,0.3662,4073.1,4072.6,2.45538165]
[1761631312892,0.3662,4073.1,4072.2,0.4663]
[1761631313091,1.228,4073.7,4072.4,2.45555446]
[1761631313092,0.001,4073.7,4072.4,2.45555446]
[1761631313402,1.5932,4073.6,4073.0,2.45513489]
[1761631313573,1.5932,4073.6,4073.1,2.45510106]
[1761631313913,0.3662,4073.5,4073.1,2.45510106]
[1761631314071,0.3662,4073.5,4073.2,2.4550684]
[1761631314271,0.3662,4073.5,4073.1,2.45512184]
[1761631314471,0.3662,4073.5,4073.3,2.45500954]
[1761631314705,1.227,4073.4,4073.2,2.45506231]
[1761631314905,1.227,4073.6,4073.5,2.45489137]
[1761631316408,0.001,4073.7,4073.6,2.4548311]
[1761631316722,1.228,4073.7,4073.6,2.4548311]
[1761631317712,0.001,4073.7,4073.6,2.4548311]
[1761631318131,1.228,4073.7,4073.6,2.4548311]
[1761631319880,1.228,4073.7,4073.4,0.1224]
[1761631320092,0.51897,4073.6,4073.1,2.45508393]
[1761631320292,0.3629,4073.6,4072.8,2.45525466]
[1761631320496,0.3629,4073.6,4073.1,2.45510134]
[1761631320695,0.3629,4073.6,4072.5,0.4663]
[1761631320901,0.3629,4073.6,4073.0,2.45518804]
[1761631321386,2.81775857,4073.6,4072.5,0.002]
[1761631321602,2.81775857,4073.6,4072.6,2.45543165]
[1761631321603,0.42560586,4073.5,4072.6,2.45543165]
[1761631321815,1.5552,4073.4,4072.5,2.45747681]
[1761631322015,0.78850586,4073.5,4072.5,0.002]
[1761631322322,0.3629,4073.4,4072.6,2.45543387]
[1761631322521,0.3629,4073.4,4072.5,2.45746921]
[1761631322723,2.81790732,4073.4,4072.6,2.45539163]
[1761631322902,2.45508449,4073.2,4072.6,2.45539163]
[1761631323333,0.3629,4073.1,4072.6,2.45539163]
[1761631323643,0.3629,4073.1,4072.5,2.45747975]
[1761631323864,0.3629,4073.1,4072.5,0.002]
[1761631324005,1.227,4073.2,4073.1,2.45508375]
[1761631325139,1.227,4073.2,4073.1,2.45513245]
[1761631325338,1.227,4073.2,4072.6,0.4663]
[1761631325643,1.227,4073.2,4073.1,2.45513245]
[1761631326218,1.5899,4073.2,4072.5,0.002]
[1761631326417,0.3629,4073.1,4072.5,0.002]
[1761631326616,0.3629,4073.1,4072.7,2.45531849]
[1761631327024,0.3629,4073.1,4072.5,0.002]
[1761631327347,0.3629,4073.1,4072.7,2.45536436]
[1761631327946,0.2197,4072.8,4072.5,0.002]
[1761631328151,0.2197,4072.8,4072.5,2.45745297]
[1761631328347,0.2197,4072.8,4072.5,0.002]
[1761631328522,0.3641,4072.7,4072.5,2.45747754]
[1761631328844,0.3641,4072.7,4072.6,2.45543387]
[1761631329031,0.2197,4072.8,4072.6,2.45543387]
[1761631329243,0.3641,4073.1,4072.5,0.002]
[1761631329552,2.81925888,4073.1,4072.5,0.002]
[1761631329844,1.227,4073.0,4072.5,0.002]
[1761631330144,0.1224,4072.7,4072.5,0.002]
[1761631330344,0.1224,4072.7,4072.6,2.45543387]
[1761631330718,0.1224,4072.9,4072.7,2.45533325]
[1761631331429,1.227,4072.8,4072.6,2.45541326]
[1761631331616,1.227,4072.8,4072.7,2.45537358]
[1761631331820,1.227,4072.8,4072.6,2.45538966]
[1761631332047,0.3421,4072.9,4072.6,2.45538966]
[1761631332242,1.227,4072.8,4072.7,2.45537358]
[1761631333065,1.227,4072.8,4072.7,2.45536761]
[1761631335272,0.001,4073.7,4072.7,2.97120706]
[1761631335454,1.227,4072.9,4072.8,2.89201329]
[1761631335831,1.227,4072.9,4072.8,2.45531329]
[1761631336853,1.227,4072.9,4072.7,0.1224]
[1761631337041,0.3641,4072.8,4072.6,3.88]
[1761631337357,0.3641,4072.8,4072.5,2.45746171]
[1761631337561,0.3641,4072.8,4072.6,2.45543073]
[1761631338091,0.3641,4072.8,4072.5,2.45743871]
[1761631338249,0.3641,4072.8,4072.5,0.002]
[1761631338443,0.3641,4072.8,4072.5,2.45745495]
[1761631338759,0.1224,4072.6,4072.5,0.002]
[1761631339278,0.4865,4072.6,4072.5,0.002]
[1761631340643,2.94193387,4072.6,4072.5,0.002]
[1761631345090,2.57783387,4072.6,4072.5,0.002]
[1761631345255,4.7499616,4072.6,4072.5,0.002]
[1761631349867,6.3051616,4072.6,4072.5,0.002]
[1761631350070,6.70608839,4072.6,4072.5,0.002]
[1761631351700,7.11159239,4072.6,4072.5,0.002]
[1761631351869,12.32554902,4072.6,4072.5,0.002]
[1761631353703,7.11159239,4072.6,4072.5,0.002]
[1761631355779,2.45597661,4071.7,4071.6,0.002]
[1761631356304,2.82007661,4071.7,4071.6,0.002]
[1761631356472,4.8986034,4071.7,4071.6,0.002]
[1761631357363,4.37527661,4071.7,4071.6,0.002]
[1761631360017,4.49767661,4071.7,4071.6,0.002]
[1761631360182,5.19303444,4071.7,4071.6,0.002]
[1761631361127,6.05693444,4071.7,4071.6,0.002]
[1761631361329,6.42103444,4071.7,4071.6,0.002]
[1761631363828,4.70653444,4071.7,4071.6,0.002]
[1761631364028,5.93453444,4071.7,4071.6,0.002]
[1761631364444,6.29863444,4071.7,4071.6,0.002]
[1761631365095,5.93453444,4071.7,4071.6,0.002]
[1761631365526,6.29863444,4071.7,4071.6,0.002]
[1761631366527,5.93453444,4071.7,4071.6,0.002]
[1761631366730,5.23917661,4071.7,4071.6,0.002]
[1761631367643,1.5552,4071.7,4071.6,0.002]
[1761631367795,1.228,4071.7,4071.6,0.4378]
[1761631368615,1.228,4071.7,4071.6,2.89383693]
[1761631369836,1.228,4071.7,4071.6,0.4378]
[1761631370137,3.68397661,4071.7,4071.6,0.002]
[1761631370334,1.228,4071.7,4071.6,0.002]
[1761631370635,3.68397661,4071.7,4071.6,0.002]
[1761631370947,4.29796091,4071.7,4071.6,0.002]
[1761631373821,4.42036091,4071.7,4071.6,0.002]
[1761631374146,3.80637661,4071.7,4071.6,0.002]
[1761631374523,1.3504,4071.7,4071.6,0.4378]
[1761631374915,0.1224,4071.7,4071.6,0.4378]
[1761631375110,1.3504,4071.7,4071.6,0.4378]
[1761631375712,1.3504,4071.7,4071.6,2.89383693]
[1761631376252,1.3504,4071.7,4071.6,0.4378]
[1761631376458,1.3504,4071.7,4071.6,2.89383693]
[1761631376616,1.228,4071.9,4071.8,2.45589824]
[1761631376814,1.228,4071.9,4071.7,0.4358]
[1761631376815,1.3504,4071.9,4071.7,0.4358]
[1761631377050,1.228,4071.9,4071.8,2.4559163]
[1761631377345,1.228,4071.9,4071.8,2.5783163]
[1761631377545,1.228,4071.9,4071.8,3.0141163]
[1761631377713,1.228,4071.9,4071.8,4.08260766]
[1761631378315,0.001,4072.0,4071.8,4.08260766]
[1761631378316,0.001,4072.0,4071.9,4.41655998]
[1761631378632,0.001,4072.0,4071.9,4.97475998]
[1761631390582,0.001,4072.0,4071.9,4.85235998]
[1761631390786,0.001,4072.0,4071.9,5.35990595]
[1761631390988,0.001,4072.0,4071.9,6.49414096]
[1761631391797,0.001,4072.0,4071.9,10.37414096]
[1761631393194,0.001,4072.0,4071.9,9.98899499]
[1761631395700,0.001,4072.0,4071.9,10.32055971]
[1761631396404,1.238,4073.8,4071.9,7.53313901]
[1761631396405,0.011,4073.8,4071.9,7.53313901]
[1761631396573,0.011,4073.8,4073.6,3.0622351]
[1761631397098,0.011,4073.8,4073.6,3.5123351]
[1761631397297,0.011,4073.8,4073.6,2.8603351]
[1761631397915,0.011,4073.8,4073.6,3.3104351]
[1761631398436,0.011,4073.8,4073.6,2.8603351]
[1761631398599,0.011,4073.8,4073.6,3.4120492]
[1761631402634,0.011,4073.8,4073.6,3.8621492]
[1761631402835,0.011,4073.8,4073.6,2.4548311]
[1761631404016,0.011,4073.8,4073.6,2.9049311]
[1761631404341,0.011,4073.8,4073.6,2.4548311]
[1761631406519,0.011,4073.8,4073.6,2.5772311]
[1761631410243,0.011,4073.8,4073.6,4.1324311]
[1761631410435,0.011,4073.8,4073.6,5.76173902]
[1761631410644,0.011,4073.8,4073.6,5.31163902]
[1761631411141,0.011,4073.8,4073.6,5.76173902]
[1761631411710,0.011,4073.8,4073.6,6.16724302]
[1761631411938,0.011,4073.8,4073.6,11.3719853]
[1761631413742,0.011,4073.8,4073.6,10.50351735]
[1761631417061,0.001,4074.0,4073.9,2.86015433]
[1761631417262,0.001,4074.0,4073.9,7.19642866]
[1761631417465,0.001,4074.0,4073.9,2.57705033]
[1761631417674,0.001,4074.0,4073.9,6.93787116]
[1761631417868,0.001,4074.0,4073.9,6.91332466]
[1761631418039,0.001,4074.0,4073.9,9.98095155]
[1761631419128,0.001,4074.0,4073.9,10.38645555]
[1761631419368,0.001,4074.0,4073.9,10.83675555]
[1761631424743,0.001,4074.2,4074.1,2.86003383]
[1761631424967,0.001,4074.2,4074.1,6.19049509]
[1761631425165,0.001,4074.2,4074.1,6.6162498]
[1761631429249,1e-08,4074.7,4074.6,2.85973263]
[1761631429498,1e-08,4074.7,4074.6,7.72741069]
[1761631429654,1e-08,4074.7,4074.6,9.73291069]
[1761631430046,1e-08,4074.7,4074.6,9.28261069]
[1761631433182,0.001,4074.9,4074.6,9.28261069]
[1761631433183,1e-08,4074.8,4074.7,4.4148724]
[1761631433386,1e-08,4074.8,4074.7,6.9139786]
[1761631434744,1e-08,4074.8,4074.7,7.0363786]
[1761631436167,1e-08,4074.8,4074.7,11.37265293]
[1761631436485,1e-08,4074.8,4074.7,7.0363786]
[1761631436802,1e-08,4074.8,4074.7,11.37265293]
[1761631437094,1e-08,4074.8,4074.7,7.0363786]
[1761631438300,1e-08,4074.8,4074.7,11.37265293]
[1761631439002,1e-08,4074.8,4074.7,7.0363786]
[1761631440192,1e-08,4074.8,4074.7,11.37265293]
[1761631440394,1.236,4075.8,4075.7,2.45356625]
[1761631440590,1.236,4075.8,4075.7,8.34504058]
[1761631440906,1.236,4075.8,4075.7,4.00876625]
[1761631441211,1.5606,4075.8,4075.7,4.00876625]
[1761631441674,0.3346,4075.8,4075.7,8.34504058]
[1761631442098,1.5606,4075.8,4075.7,8.34504058]
[1761631442302,1.5606,4075.8,4075.6,2.45359437]
[1761631442471,1.236,4075.8,4075.7,2.45356625]
[1761631443311,1.5606,4075.8,4075.7,2.45356625]
[1761631443536,1.73991,4075.8,4074.6,0.53340373]
[1761631443704,0.2149,4074.7,4074.6,4.33827433]
[1761631443883,0.4779,4074.7,4074.6,4.33827433]
[1761631444089,0.4779,4074.7,4074.6,8.34770296]
[1761631445007,0.4779,4074.7,4074.6,4.01142863]
[1761631445215,0.4779,4074.7,4074.6,8.34770296]
[1761631450303,0.4779,4074.7,4074.6,8.47010296]
[1761631450901,0.4779,4074.7,4074.6,2.45622863]
[1761631451105,0.4779,4074.7,4074.6,0.002]
[1761631451405,0.6003,4074.7,4074.6,0.002]
[1761631451809,1.8263,4074.7,4074.6,0.002]
[1761631452016,1.8263,4074.7,4074.6,2.45622863]
[1761631452421,0.18931,4075.8,4074.7,1.5552]
[1761631452625,0.2625,4075.4,4075.3,2.45380708]
[1761631453006,0.3849,4075.4,4075.3,2.45380708]
[1761631453230,1.6109,4075.4,4075.3,2.45380708]
[1761631454040,0.3849,4075.4,4075.3,2.45380708]
[1761631454216,1.6109,4075.4,4075.3,2.45380708]
[1761631457827,0.3849,4075.4,4075.3,2.45380708]
[1761631458021,1.6109,4075.4,4075.3,2.45380708]
[1761631460026,1.6119,4075.4,4075.3,2.45380708]
[1761631460524,0.1234,4075.4,4075.3,2.45380708]
[1761631461026,1.6119,4075.4,4075.3,2.45380708]
[1761631461256,0.3859,4075.4,4075.3,2.45380708]
[1761631461424,1.6119,4075.4,4075.3,2.45380708]
[1761631467630,0.3859,4075.4,4075.3,2.45380708]
[1761631467837,1.6119,4075.4,4075.3,2.45380708]
[1761631469636,1.77309,4075.4,4074.8,2.45409742]
[1761631469833,0.4723,4075.3,4074.8,2.45409742]
[1761631470029,0.1224,4074.9,4074.8,2.45409742]
[1761631470443,0.6004,4074.9,4074.6,0.002]
[1761631470645,0.6004,4074.9,4074.7,2.45416624]
[1761631470870,0.248,4074.8,4074.7,2.45416624]
[1761631471853,0.248,4074.8,4074.6,2.45617662]
[1761631472054,0.248,4074.8,4074.7,2.4541684]
[1761631472234,1.5964,4074.8,4074.7,2.4541684]
[1761631474403,1.3484,4074.8,4074.7,2.4541684]
[1761631474557,1.226,4074.8,4074.7,2.4541684]
[1761631474955,1.6894,4074.8,4074.7,2.4541684]
[1761631477090,1.6894,4074.8,4074.6,0.002]